bitfinex-derivatives/quotes_SOLF0:USTF0_20250523
["timestamp","ask_amount","ask_price","bid_price","bid_amount"]
[1748010096145,0.04083548,179.52,179.48,0.04116443]
[1748010096846,3.548e-05,179.52,179.48,131.10116443]
[1748010097238,3.548e-05,179.52,179.51,5.569]
[1748010098240,3.548e-05,179.52,179.51,105.78]
[1748010099346,3.548e-05,179.52,179.48,0.04116443]
[1748010099546,5.5694,179.5,179.48,0.04116443]
[1748010099944,3.548e-05,179.52,179.48,0.04116443]
[1748010100250,5.5696,179.49,179.48,0.04116443]
[1748010101349,5.5708,179.46,179.41,105.78]
[1748010101536,1.8857,179.51,179.4,164.02981116]
[1748010101743,1.8857,179.51,179.43,5.5713]
[1748010101951,1.8857,179.51,179.41,105.78]
[1748010102360,5.5705,179.47,179.44,0.03894381]
[1748010102661,0.03569899,179.48,179.44,0.03894381]
[1748010102859,5.5709,179.45,179.44,0.03894381]
[1748010103154,131.15569899,179.48,179.35,3.9788]
[1748010103359,5.5713,179.44,179.36,236.9]
[1748010103756,131.12,179.48,179.36,236.9]
[1748010103950,131.12,179.48,179.42,5.5716]
[1748010104153,0.03735983,179.47,179.43,0.04267775]
[1748010104555,5.5708,179.46,179.43,0.04267775]
[1748010105161,5.5709,179.45,179.43,0.04267775]
[1748010105356,0.03735983,179.47,179.43,0.04267775]
[1748010105957,5.60765983,179.47,179.43,0.04267775]
[1748010106454,0.03735983,179.47,179.43,0.04267775]
[1748010107155,5.5709,179.45,179.43,0.04267775]
[1748010108462,0.03735983,179.47,179.43,0.04267775]
[1748010108662,131.14,179.54,179.43,0.04267775]
[1748010108858,3.9108,179.57,179.42,1.8398]
[1748010108859,5.5675,179.56,179.42,1.8398]
[1748010109057,1.9645,179.57,179.42,1.8398]
[1748010109557,5.5683,179.54,179.42,1.8398]
[1748010109867,0.03593207,179.5,179.46,0.03977283]
[1748010110065,0.03593207,179.5,179.47,131.14]
[1748010110366,0.03593207,179.5,179.49,5.5694]
[1748010110658,131.14,179.58,179.48,105.84]
[1748010110862,131.14,179.58,179.48,107.7232]
[1748010111463,0.04253097,179.55,179.51,0.04061987]
[1748010111858,0.04253097,179.55,179.54,5.5681]
[1748010112558,0.04253097,179.55,179.51,0.04061987]
[1748010113466,0.04253097,179.55,179.54,5.5681]
[1748010114964,0.04253097,179.55,179.52,131.14]
[1748010115166,0.04253097,179.55,179.53,105.82]
[1748010116164,0.04253097,179.55,179.52,131.12]
[1748010116367,5.5683,179.54,179.52,131.12]
[1748010116553,5.5683,179.54,179.51,0.04061987]
[1748010116868,0.04253097,179.55,179.51,0.04061987]
[1748010117467,0.04253097,179.55,179.54,5.5681]
[1748010118861,131.12,179.64,179.57,5.5669]
[1748010119066,131.12,179.64,179.53,131.12]
[1748010119468,131.12,179.64,179.55,5.5675]
[1748010119663,131.12,179.64,179.53,131.12]
[1748010119858,5.5667,179.59,179.57,0.04114633]
[1748010120058,0.03961549,179.6,179.57,0.04114633]
[1748010120860,0.03961549,179.6,179.58,105.8]
[1748010121057,0.03961549,179.6,179.57,0.04114633]
[1748010121758,5.5668,179.58,179.57,0.04114633]
[1748010121958,0.03961549,179.6,179.57,0.04114633]
[1748010122266,3.9633,179.68,179.57,0.04114633]
[1748010122465,3.9633,179.68,179.57,1.9706]
[1748010122669,3.9633,179.68,179.58,5.5668]
[1748010122970,3.9633,179.68,179.57,1.9706]
[1748010123160,0.03596785,179.64,179.61,0.03669556]
[1748010123763,0.03596785,179.64,179.5,1.9706]
[1748010123966,23.50578181,179.66,179.54,105.8]
[1748010124460,130.8,179.67,179.54,105.8]
[1748010124770,0.03758993,179.62,179.59,0.0379622]
[1748010125459,130.78,179.71,179.59,0.0379622]
[1748010125664,130.78,179.71,179.58,3.8274]
[1748010125963,5.5647,179.65,179.6,5.5661]
[1748010126170,130.78,179.71,179.58,3.8274]
[1748010126465,2.0007,179.75,179.68,5.5636]
[1748010126669,0.03672479,179.73,179.7,0.0358149]
[1748010126870,0.03707156,179.73,179.7,0.03629671]
[1748010127070,5.5628,179.71,179.7,0.03629671]
[1748010127467,5.5627,179.72,179.7,0.03629671]
[1748010127868,130.81707156,179.73,179.7,0.03629671]
[1748010128171,0.03707156,179.73,179.7,0.03629671]
[1748010129159,0.03707156,179.73,179.72,5.5625]
[1748010129365,0.03707156,179.73,179.72,111.3225]
[1748010129761,1.8412,179.82,179.72,236.52]
[1748010129965,132.6626,179.85,179.72,236.52]
[1748010130166,136.3185,179.85,179.72,236.52]
[1748010130472,134.7168,179.89,179.73,23.50578181]
[1748010130676,140.2741,179.89,179.73,23.50578181]
[1748010130977,0.03686069,179.81,179.78,0.0362469]
[1748010131165,10.29706209,179.9,179.79,130.74]
[1748010131361,3.75458358,179.86,179.8,107.6977]
[1748010131562,10.29706209,179.9,179.81,23.50578181]
[1748010131967,1.9267,179.96,179.81,23.50578181]
[1748010132166,0.03939092,179.9,179.87,0.03997125]
[1748010132370,6.84971438,180.01,179.88,236.48]
[1748010132969,5.5555,179.95,179.89,5.5572]
[1748010133176,6.84971438,180.01,179.88,236.48]
[1748010133375,0.04153908,179.96,179.93,0.04284055]
[1748010134177,5.59683908,179.96,179.93,0.04284055]
[1748010134380,0.04153908,179.96,179.93,0.04284055]
[1748010134778,5.5557,179.94,179.93,0.04284055]
[1748010134987,0.04153908,179.96,179.88,105.7]
[1748010135280,5.5564,179.92,179.88,105.7]
[1748010135476,130.68,179.98,179.88,105.7]
[1748010135677,5.5557,179.94,179.88,105.7]
[1748010135876,130.68,179.98,179.88,105.7]
[1748010136079,0.03869543,179.93,179.89,0.03774495]
[1748010136381,5.5563,179.92,179.89,0.03774495]
[1748010136873,0.03869543,179.93,179.89,0.03774495]
[1748010137276,3.9568,180.02,179.89,0.03774495]
[1748010137472,3.9568,180.02,179.89,3.4393]
[1748010137672,130.62,180.1,179.92,23.50578181]
[1748010137868,130.62,180.12,179.93,130.62]
[1748010138075,5.5514,180.08,179.96,23.50578181]
[1748010138275,0.04005344,180.04,180.0,0.04067336]
[1748010138475,0.04005344,180.04,180.01,130.62]
[1748010139684,3.9359,180.13,180.01,130.62]
[1748010139976,1.9458,180.13,180.01,130.62]
[1748010140569,0.03844394,180.09,180.04,5.5526]
[1748010140783,0.03844394,180.09,180.05,0.03955514]
[1748010141086,0.03844394,180.09,180.08,5.5514]
[1748010141681,0.03844394,180.09,180.06,136.1317]
[1748010141981,0.03844394,180.09,180.06,130.58]
[1748010142177,0.03844394,180.09,180.07,5.5516]
[1748010142370,0.03844394,180.09,180.07,105.6]
[1748010143382,0.03844394,180.09,180.08,5.5514]
[1748010143780,1.8428,180.15,180.07,105.6]
[1748010144285,2.0001,180.19,180.07,105.6]
[1748010144487,5.5484,180.18,180.12,5.5501]
[1748010144678,0.03751738,180.17,180.13,0.03679095]
[1748010146579,0.03751738,180.17,180.14,5.5495]
[1748010146893,0.03751738,180.17,180.13,0.03679095]
[1748010147185,0.03751738,180.17,180.14,5.5493]
[1748010147485,0.03751738,180.17,180.13,0.03679095]
[1748010147680,0.03751738,180.17,180.13,5.58639095]
[1748010147888,0.03751738,180.17,180.13,0.03679095]
[1748010148482,5.5493,180.15,180.13,0.03679095]
[1748010148989,5.549,180.16,180.13,0.03679095]
[1748010149381,0.03751738,180.17,180.13,0.03679095]
[1748010149577,0.03751738,180.17,180.13,5.58659095]
[1748010149783,0.03751738,180.17,180.13,0.03679095]
[1748010150183,0.03751738,180.17,180.14,5.5495]
[1748010150483,0.03751738,180.17,180.13,0.03679095]
[1748010152692,5.5495,180.14,180.13,0.03679095]
[1748010152889,23.54329919,180.17,180.09,105.48]
[1748010153088,5.5498,180.14,180.09,111.031]
[1748010153289,23.50578181,180.17,180.09,111.031]
[1748010153694,23.50578181,180.17,180.09,105.48]
[1748010153891,0.03779811,180.15,180.11,0.03803149]
[1748010154692,0.03779811,180.15,180.13,5.5497]
[1748010154894,0.03779811,180.15,180.11,0.03803149]
[1748010156292,0.03779811,180.15,180.07,130.12]
[1748010156493,23.54357992,180.15,179.98,480.24]
[1748010156691,23.50578181,180.11,179.98,105.48]
[1748010156893,130.12,180.1,179.98,105.48]
[1748010157197,0.03841325,180.06,180.02,0.03897486]
[1748010157391,130.12,180.05,179.94,105.48]
[1748010157590,130.12,180.05,179.93,130.12]
[1748010157786,5.5536,180.01,179.97,5.5546]
[1748010157992,23.50578181,180.03,179.97,5.5546]
[1748010158194,23.50578181,180.03,179.93,235.6]
[1748010158492,0.03822122,180.0,179.96,0.03864485]
[1748010158893,23.50578181,179.98,179.85,235.6]
[1748010159703,23.50578181,179.98,179.85,130.12]
[1748010159997,0.04117268,179.93,179.9,0.03664511]
[1748010160203,0.04117268,179.93,179.79,235.6]
[1748010160204,130.12,179.92,179.79,235.6]
[1748010160399,5.5576,179.88,179.84,5.5587]
[1748010160903,5.5576,179.88,179.79,235.6]
[1748010161102,0.04267168,179.85,179.82,0.04254915]
[1748010161289,0.03939411,179.85,179.82,0.04254915]
[1748010161489,0.03939411,179.85,179.82,5.60194915]
[1748010161699,0.03939411,179.85,179.82,0.04254915]
[1748010162496,0.03939411,179.85,179.75,130.16]
[1748010162705,23.50578181,179.86,179.72,105.52]
[1748010162995,23.50578181,179.86,179.71,235.68]
[1748010163202,23.50578181,179.82,179.71,235.68]
[1748010163399,130.16,179.81,179.71,130.16]
[1748010163605,0.03582738,179.78,179.75,0.04109455]
[1748010164899,0.03582738,179.78,179.76,5.5613]
[1748010165103,0.03582738,179.78,179.75,0.04109455]
[1748010165405,0.03582738,179.78,179.76,5.5613]
[1748010165804,0.03582738,179.78,179.75,0.04109455]
[1748010166008,0.03582738,179.78,179.75,5.60269455]
[1748010166208,0.03582738,179.78,179.75,0.04109455]
[1748010166508,5.561,179.77,179.75,0.04109455]
[1748010166696,0.03582738,179.78,179.75,0.04109455]
[1748010167201,5.5613,179.76,179.75,0.04109455]
[1748010167403,0.03582738,179.78,179.67,130.24]
[1748010167611,1.9954,179.77,179.73,5.5619]
[1748010167807,1.9787,179.8,179.67,235.82]
[1748010168197,130.24,179.86,179.67,259.32578181]
[1748010168398,0.03623512,179.78,179.75,0.03581036]
[1748010168600,0.03740786,179.78,179.76,105.58]
[1748010169294,7.86e-06,179.78,179.77,5.561]
[1748010169506,130.24,179.86,179.76,105.58]
[1748010169708,130.24,179.86,179.8,5.5597]
[1748010170208,130.24,179.86,179.83,5.559]
[1748010170405,130.27809829,179.86,179.83,0.03628205]
[1748010170709,0.03809829,179.86,179.84,5.5588]
[1748010171204,0.03809829,179.86,179.83,0.03628205]
[1748010171801,0.03809829,179.86,179.85,5.5585]
[1748010172601,0.03809829,179.86,179.83,5.59508205]
[1748010172801,0.03809829,179.86,179.83,0.03628205]
[1748010173612,0.03809829,179.86,179.83,5.59518205]
[1748010173812,0.03809829,179.86,179.83,0.03628205]
[1748010175314,0.03809829,179.86,179.84,5.5588]
[1748010175612,0.03809829,179.86,179.83,0.03628205]
[1748010176409,130.28,179.98,179.84,130.28]
[1748010176615,130.28,179.98,179.84,133.9191]
[1748010177003,130.28,179.98,179.94,5.5556]
[1748010177411,130.32011693,179.98,179.94,5.59284878]
[1748010177608,130.32011693,179.98,179.94,0.03724878]
[1748010177909,0.04011693,179.98,179.94,0.03724878]
[1748010178107,0.04011693,179.98,179.95,135.8351]
[1748010178312,0.04011693,179.98,179.95,130.28]
[1748010179214,0.04011693,179.98,179.94,0.03724878]
[1748010180013,0.04011693,179.98,179.82,480.24]
[1748010180208,5.5555,179.95,179.85,235.88]
[1748010180515,1.9453,179.94,179.85,235.88]
[1748010181215,0.03640531,179.91,179.88,0.03616409]
[1748010181414,5.59310531,179.91,179.88,0.03616409]
[1748010181610,0.03640531,179.91,179.88,0.03616409]
[1748010181915,5.5572,179.89,179.88,0.03616409]
[1748010182109,0.03640531,179.91,179.81,130.28]
[1748010182411,130.26,179.9,179.81,235.88]
[1748010182613,131.9253,179.94,179.81,235.88]
[1748010183014,0.04212119,179.89,179.86,0.03813532]
[1748010184316,0.04212119,179.89,179.86,130.01813532]
[1748010184516,129.98,179.98,179.86,130.01813532]
[1748010184818,129.98,179.98,179.86,129.98]
[1748010185322,5.5551,179.96,179.86,129.98]
[1748010185521,0.03926327,179.93,179.89,0.04269033]
[1748010185821,0.03926327,179.93,179.9,105.6]
[1748010186418,129.98,179.98,179.9,105.6]
[1748010186619,25.34778181,180.05,179.91,129.98]
[1748010186819,5.5533,180.02,179.91,129.98]
[1748010187009,129.98,180.03,179.91,129.98]
[1748010187512,0.03603779,179.99,179.95,0.03748441]
[1748010187917,0.03603779,179.99,179.96,5.5551]
[1748010188122,0.03603779,179.99,179.95,0.03748441]
[1748010188622,0.03603779,179.99,179.96,129.98]
[1748010190019,0.03603779,179.99,179.97,5.5547]
[1748010190327,0.03603779,179.99,179.96,129.98]
[1748010190629,0.03603779,179.99,179.98,5.5545]
[1748010190816,0.03603779,179.99,179.98,111.1345]
[1748010191014,129.98,180.07,179.98,105.58]
[1748010191526,5.5528,180.04,179.98,105.58]
[1748010191729,1.8536,180.09,179.98,105.58]
[1748010192117,0.04021721,180.05,180.04,5.5526]
[1748010193014,1.8536,180.14,180.02,0.04150365]
[1748010193219,1.8536,180.14,180.01,129.96]
[1748010193521,7.4032,180.14,180.01,129.96]
[1748010193722,1.8536,180.14,180.01,129.96]
[1748010193917,129.94,180.15,180.02,3.7085]
[1748010194124,6.819e-05,180.1,180.09,5.5511]
[1748010194326,129.94,180.19,180.09,235.5]
[1748010194626,129.94,180.19,180.13,5.5498]
[1748010195029,129.94,180.19,180.09,235.5]
[1748010195217,0.03699294,180.18,180.14,0.03953832]
[1748010195621,5.58559294,180.18,180.14,0.03953832]
[1748010195827,0.03699294,180.18,180.14,0.03953832]
[1748010199132,23.34832201,180.15,180.06,105.52]
[1748010199327,1.8424,180.14,180.06,105.52]
[1748010200027,0.04176429,180.12,180.08,0.04216957]
[1748010200430,0.04176429,180.12,180.11,5.5502]
[1748010202831,6.429e-05,180.12,180.11,5.5502]
[1748010205332,6.429e-05,180.12,180.11,14.8357]
[1748010205627,2.0055,180.29,180.11,32.63382201]
[1748010205829,2.0055,180.29,180.11,27.07382201]
[1748010206028,2.0055,180.29,180.15,23.34832201]
[1748010206232,2.0055,180.29,180.16,237.2859]
[1748010206427,0.0412926,180.24,180.21,0.04106133]
[1748010208336,0.0412926,180.24,180.23,5.5468]
[1748010208536,0.0412926,180.24,180.23,111.0268]
[1748010208930,0.0412926,180.24,180.23,105.48]
[1748010209535,0.0412926,180.24,180.23,111.0268]
[1748010210436,0.0412926,180.24,180.13,129.82]
[1748010210739,5.5459,180.26,180.14,105.46]
[1748010210932,2.0055,180.29,180.14,105.46]
[1748010211136,23.34832201,180.26,180.14,105.46]
[1748010211332,0.03987712,180.22,180.14,111.0095]
[1748010211635,0.03987712,180.22,180.18,0.03610634]
[1748010212028,23.38819913,180.22,180.13,235.26]
[1748010212431,0.03987712,180.22,180.13,235.26]
[1748010212632,0.03987712,180.22,180.14,5.5493]
[1748010212832,0.03987712,180.22,180.13,235.26]
[1748010213040,0.03987712,180.22,180.16,0.04212656]
[1748010214037,5.5479,180.2,180.16,0.04212656]
[1748010214241,0.03987712,180.22,180.16,5.59082656]
[1748010214736,0.03987712,180.22,180.16,0.04212656]
[1748010215739,5.58727712,180.22,180.16,0.04212656]
[1748010215941,0.03987712,180.22,180.16,0.04212656]
[1748010216744,5.5476,180.21,180.16,0.04212656]
[1748010216937,0.03987712,180.22,180.16,0.04212656]
[1748010217739,14.18309691,180.21,180.16,0.04212656]
[1748010217943,5.5479,180.2,180.16,0.04212656]
[1748010218340,14.18309691,180.21,180.16,0.04212656]
[1748010218540,5.5482,180.19,180.16,0.04212656]
[1748010218741,1.997,180.2,180.16,0.04212656]
[1748010219042,0.03987712,180.22,180.11,105.44]
[1748010219249,18.13720654,180.29,180.12,129.48]
[1748010219438,3.963,180.29,180.13,5.6422]
[1748010219846,3.963,180.29,180.24,5.5464]
[1748010220244,0.04014526,180.28,180.25,0.03587246]
[1748010220439,0.04014526,180.28,180.25,5.58177246]
[1748010221653,0.04014526,180.28,180.26,5.5457]
[1748010222449,0.04014526,180.28,180.27,5.5455]
[1748010225254,0.04014526,180.28,180.25,0.03587246]
[1748010226147,5.58534526,180.28,180.25,0.03587246]
[1748010227142,0.04014526,180.28,180.25,0.03587246]
[1748010227742,0.04014526,180.28,180.25,5.58177246]
[1748010227946,0.04014526,180.28,180.25,0.03587246]
[1748010228252,0.04014526,180.28,180.22,5.547]
[1748010228548,5.5458,180.26,180.2,129.44]
[1748010228746,0.04014526,180.28,180.2,129.44]
[1748010228948,0.04014526,180.28,180.23,5.5466]
[1748010229151,0.04014526,180.28,180.24,0.04059667]
[1748010229751,5.5462,180.25,180.24,0.04059667]
[1748010230051,0.04014526,180.28,180.24,0.04059667]
[1748010230857,5.5458,180.27,180.24,0.04059667]
[1748010231043,0.04014526,180.28,180.25,5.5462]
[1748010231750,0.04014526,180.28,180.24,0.04059667]
[1748010232861,0.04014526,180.28,180.25,5.5461]
[1748010233647,0.04014526,180.28,180.26,5.5459]
[1748010234747,0.04014526,180.28,180.27,5.5456]
[1748010235154,0.04014526,180.28,180.26,5.5458]
[1748010235556,0.04014526,180.28,180.24,0.04059667]
[1748010237161,0.04014526,180.28,180.25,5.546]
[1748010237561,0.04014526,180.28,180.24,0.04059667]
[1748010238467,5.58554526,180.28,180.24,0.04059667]
[1748010239159,0.04014526,180.28,180.24,0.04059667]
[1748010239354,0.04014526,180.28,180.25,5.546]
[1748010240068,0.04014526,180.28,180.27,5.5456]
[1748010240264,0.04014526,180.28,180.24,0.04059667]
[1748010242161,0.04014526,180.28,180.26,5.5457]
[1748010242357,0.04014526,180.28,180.24,0.04059667]
[1748010242866,0.04014526,180.28,180.27,5.5456]
[1748010243474,0.04014526,180.28,180.24,5.58699667]
[1748010243774,0.04014526,180.28,180.24,0.04059667]
[1748010244470,0.04014526,180.28,180.16,129.18]
[1748010244471,14.16742924,180.27,180.16,129.18]
[1748010244771,5.5463,180.25,180.21,5.5472]
[1748010244966,143.34742924,180.27,180.16,129.18]
[1748010245371,0.03704153,180.23,180.21,5.5473]
[1748010245570,0.03704153,180.23,180.2,0.0386096]
[1748010245962,0.03704153,180.23,180.22,5.5471]
[1748010246163,0.03704153,180.23,180.2,0.0386096]
[1748010246468,0.03704153,180.23,180.21,5.5472]
[1748010246769,0.03704153,180.23,180.2,0.0386096]
[1748010247169,0.03704153,180.23,180.22,5.5471]
[1748010247366,129.18,180.31,180.2,0.0386096]
[1748010247367,185.16742924,180.33,180.21,129.18]
[1748010247672,5.5443,180.32,180.27,5.5455]
[1748010247860,14.16742924,180.33,180.27,5.5455]
[1748010248063,14.16742924,180.33,180.25,105.38]
[1748010248270,0.04166717,180.31,180.27,0.04066976]
[1748010249482,0.04166717,180.31,180.28,5.5451]
[1748010250074,0.04166717,180.31,180.27,0.04066976]
[1748010250480,0.04166717,180.31,180.28,5.5452]
[1748010250671,0.04166717,180.31,180.27,0.04066976]
[1748010251680,0.04166717,180.31,180.28,5.5451]
[1748010252279,0.04166717,180.31,180.27,5.58616976]
[1748010252480,0.04166717,180.31,180.27,0.04066976]
[1748010252983,5.545,180.29,180.27,0.04066976]
[1748010253177,0.04166717,180.31,180.27,0.04066976]
[1748010253376,0.04166717,180.31,180.27,5.58606976]
[1748010253577,5.5447,180.3,180.27,0.04066976]
[1748010253882,0.04166717,180.31,180.27,0.04066976]
[1748010254583,5.5449,180.3,180.27,0.04066976]
[1748010254879,0.04166717,180.31,180.27,0.04066976]
[1748010255479,0.04166717,180.31,180.27,5.58596976]
[1748010255777,0.04166717,180.31,180.27,0.04066976]
[1748010255979,0.04166717,180.31,180.28,5.5451]
[1748010256281,0.04166717,180.31,180.27,0.04066976]
[1748010256680,5.58626717,180.31,180.27,5.58606976]
[1748010257081,5.58626717,180.31,180.27,0.04066976]
[1748010257481,0.04166717,180.31,180.27,0.04066976]
[1748010258479,5.5449,180.3,180.27,5.58606976]
[1748010258678,0.04166717,180.31,180.27,0.04066976]
[1748010259085,5.58616717,180.31,180.28,5.5451]
[1748010259387,0.04166717,180.31,180.27,0.04066976]
[1748010260077,5.58606717,180.31,180.28,5.5452]
[1748010260280,0.04166717,180.31,180.27,0.04066976]
[1748010261082,14.20909641,180.31,180.27,0.04066976]
[1748010261388,5.5453,180.28,180.27,0.04066976]
[1748010261589,14.20909641,180.31,180.27,0.04066976]
[1748010261780,5.5452,180.29,180.27,0.04066976]
[1748010261982,14.20909641,180.31,180.27,0.04066976]
[1748010262281,5.58616717,180.31,180.27,0.04066976]
[1748010262689,0.04166717,180.31,180.27,0.04066976]
[1748010262880,5.545,180.29,180.27,0.04066976]
[1748010263685,5.5453,180.28,180.27,0.04066976]
[1748010264383,5.5451,180.29,180.27,0.04066976]
[1748010264785,0.04166717,180.31,180.27,0.04066976]
[1748010264987,5.545,180.29,180.27,0.04066976]
[1748010265289,0.04166717,180.31,180.27,0.04066976]
[1748010265989,5.5453,180.28,180.27,0.04066976]
[1748010266187,0.04166717,180.31,180.23,5.5467]
[1748010266382,129.18,180.29,180.23,5.5467]
[1748010266583,5.5461,180.26,180.23,5.5467]
[1748010267092,5.5461,180.26,180.21,129.18]
[1748010267291,0.0424433,180.25,180.22,0.03673548]
[1748010267684,0.0424433,180.25,180.23,5.5466]
[1748010268287,0.0424433,180.25,180.22,0.03673548]
[1748010268992,5.5468,180.24,180.22,0.03673548]
[1748010269396,0.0424433,180.25,180.22,0.03673548]
[1748010270795,0.0424433,180.25,180.23,5.5468]
[1748010271093,0.0424433,180.25,180.22,0.03673548]
[1748010271393,5.5888433,180.25,180.22,0.03673548]
[1748010272496,0.0424433,180.25,180.22,0.03673548]
[1748010273696,0.0424433,180.25,180.23,5.5466]
[1748010273894,0.0424433,180.25,180.22,0.03673548]
[1748010274794,5.5469,180.23,180.22,0.03673548]
[1748010275192,5.5483,180.19,180.17,105.38]
[1748010275388,130.8529,180.24,180.16,129.18]
[1748010276088,0.04166909,180.22,180.18,0.04161571]
[1748010276294,0.04166909,180.22,180.21,5.5475]
[1748010277595,1.8638,180.29,180.21,128.88]
[1748010277796,1.8638,180.29,180.22,105.4]
[1748010278193,1.8638,180.29,180.23,5.5467]
[1748010278395,5.5458,180.27,180.22,105.4]
[1748010278595,0.03859054,180.26,180.24,5.5463]
[1748010278794,0.03859054,180.26,180.23,0.03826481]
[1748010279196,0.03859054,180.26,180.25,5.5462]
[1748010279390,0.03859054,180.26,180.23,0.03826481]
[1748010279797,0.03859054,180.26,180.25,5.5462]
[1748010281401,0.03859054,180.26,180.24,5.5465]
[1748010281701,0.03859054,180.26,180.23,0.03826481]
[1748010282199,0.03859054,180.26,180.25,5.5462]
[1748010282805,0.03859054,180.26,180.24,5.5465]
[1748010283102,0.03859054,180.26,180.23,0.03826481]
[1748010283402,0.03859054,180.26,180.24,5.5463]
[1748010284302,0.03859054,180.26,180.25,5.5462]
[1748010284504,0.03859054,180.26,180.23,0.03826481]
[1748010285397,0.03859054,180.26,180.25,5.5462]
[1748010286504,0.03859054,180.26,180.23,0.03826481]
[1748010287801,0.03859054,180.26,180.24,5.5466]
[1748010288004,0.03859054,180.26,180.23,0.03826481]
[1748010289002,5.5466,180.24,180.23,0.03826481]
[1748010289201,8.6923008,180.24,180.18,105.38]
[1748010289603,5.5471,180.23,180.2,5.5476]
[1748010289911,8.6923008,180.24,180.18,105.38]
[1748010290102,8.6923008,180.24,180.18,5.5483]
[1748010290316,0.03519758,180.23,180.19,0.04154021]
[1748010290810,5.5477,180.21,180.19,0.04154021]
[1748010291510,5.5478,180.2,180.19,0.04154021]
[1748010291708,0.03519758,180.23,180.19,0.04154021]
[1748010292111,5.5472,180.22,180.2,5.5477]
[1748010292412,0.03519758,180.23,180.19,0.04154021]
[1748010292604,5.5472,180.22,180.19,5.58964021]
[1748010293214,5.5475,180.21,180.19,5.58964021]
[1748010293513,0.03519758,180.23,180.19,0.04154021]
[1748010293708,5.5474,180.22,180.19,0.04154021]
[1748010293908,0.03519758,180.23,180.19,0.04154021]
[1748010294212,0.03519758,180.23,180.22,5.5472]
[1748010294505,0.03519758,180.23,180.2,5.5475]
[1748010294915,0.03519758,180.23,180.19,0.04154021]
[1748010295412,5.58239758,180.23,180.19,0.04154021]
[1748010295815,0.03519758,180.23,180.19,5.58954021]
[1748010296008,5.5473,180.22,180.19,5.58954021]
[1748010296715,5.5473,180.22,180.19,0.04154021]
[1748010297417,5.5473,180.22,180.19,5.58954021]
[1748010299018,5.5478,180.2,180.19,0.04154021]
[1748010300315,5.5475,180.21,180.19,0.04154021]
[1748010301118,5.5478,180.2,180.19,0.04154021]
[1748010302822,5.5487,180.18,180.13,128.86]
[1748010303413,5.5487,180.18,180.15,5.5491]
[1748010303615,5.5487,180.18,180.13,128.86]
[1748010303907,139.5416008,180.23,180.17,5.5487]
[1748010304110,139.5416008,180.23,180.18,0.03824828]
[1748010304111,0.04061001,180.22,180.18,0.03824828]
[1748010304525,5.548,180.2,180.18,0.03824828]
[1748010304919,0.04061001,180.22,180.18,0.03824828]
[1748010305114,5.5479,180.2,180.18,0.03824828]
[1748010305322,0.04061001,180.22,180.18,0.03824828]
[1748010306324,5.5481,180.19,180.18,0.03824828]
[1748010306621,171.0,180.21,180.18,0.03824828]
[1748010306823,171.0,180.21,180.19,5.5479]
[1748010307121,171.0,180.21,180.18,0.03824828]
[1748010307323,171.0,180.21,180.2,5.5478]
[1748010307513,0.04061001,180.22,180.2,5.5478]
[1748010308226,0.04061001,180.22,180.18,0.03824828]
[1748010308425,8.6923008,180.2,180.07,4.95374807]
[1748010308621,8.6923008,180.17,180.07,4.95374807]
[1748010308823,130.4485,180.16,180.07,4.95374807]
[1748010309014,5.5498,180.14,180.07,4.95374807]
[1748010309219,130.4485,180.16,180.07,4.95374807]
[1748010309419,0.03846649,180.13,180.1,0.0203868]
[1748010310125,171.0,180.24,180.1,0.0203868]
[1748010310329,171.0,180.24,180.17,5.5486]
[1748010310330,5.5476,180.21,180.17,5.5486]
[1748010310632,135.24168646,180.22,180.14,105.42]
[1748010311222,0.03598508,180.2,180.16,0.03554893]
[1748010312037,0.03598508,180.2,180.18,5.5484]
[1748010312228,0.03598508,180.2,180.16,0.03554893]
[1748010313025,0.03598508,180.2,180.18,5.5483]
[1748010314531,0.03598508,180.2,180.19,5.5481]
[1748010315226,0.03598508,180.2,180.16,0.03554893]
[1748010316931,0.03598508,180.2,180.17,5.5486]
[1748010317134,0.03598508,180.2,180.16,0.03554893]
[1748010318135,5.5487,180.17,180.16,0.03554893]
[1748010319338,5.5485,180.18,180.16,0.03554893]